Cogmind - Beta 16 @@@ ROGUE MODE // 2025.12.27 @ 11:02:39 Player: Compilatron Result: Destroyed by S-27 Virus with Autogun Performance ------------- Evolutions (4) 2000 Regions Visited (6) 1200 Robots Destroyed (50) 250 Value Destroyed (1320) 1320 Prototype IDs (4) 80 Alien Tech Used (0) 0 Bonus (176) 176 TOTAL SCORE: 5026 Bonus ------- Follower Combat Kills 176 Cogmind --------- Core Integrity 0/850 Matter 202/300 Energy 99/100 System Corruption 0% Temperature Cool (0) Movement Core (50) Location -6/Factory Parts ------- > --- POWER (1) -------- (None) > --- PROPULSION (5) --- (None) > --- UTILITY (7) ------ Advanced Visual Processing Unit Improved Signal Interpreter Corruption Screen > --- WEAPON (2) ------- (None) > --- INVENTORY (5) ---- Small Storage Unit Transmission Jammer Reaction Control System Hacking Suite Coil Gun Peak State ------------ > --- POWER ------------ Improved Deuterium Engine > --- PROPULSION ------- Cesium-ion Thruster Cesium-ion Thruster Xenon Bombardment Thruster Xenon Bombardment Thruster Xenon Bombardment Thruster > --- UTILITY ---------- Medium Storage Unit Advanced Visual Processing Unit Advanced Sensor Array Improved Signal Interpreter Hacking Suite System Shield Corruption Screen > --- WEAPON ----------- Improved Proton Missile Launcher > --- INVENTORY -------- Small Storage Unit Compact Matter Pod Transmission Jammer ECM Suite Reaction Control System Hacking Suite Corruption Screen Lightning Gun Coil Gun Heavy Machine Gun [Rating: 52] Favorites ----------- Power Heavy Ion Engine Engine Heavy Ion Engine Power Core Light Nuclear Core Propulsion Light Treads Treads Light Treads Leg Aluminum Leg Wheel Wheel Flight Unit Xenon Bombardment Thruster Utility Large Storage Unit Device Improved Heat Sink Storage Large Storage Unit Processor Signal Interpreter Hackware Hacking Suite Protection Medium Armor Plating Weapon Improved Assault Rifle Energy Gun Spread Laser Ballistic Gun Improved Assault Rifle Ballistic Cannon Flak Cannon Launcher Improved Proton Missile Launcher Build | -11 -10 -9 -9 -9 -7 -6 ------- Run | Yrd Mat Mat Sto Rec Fac Fac Slots Evolved 8 | . . 2 . . 4 2 Power . | . . . . . . . Propulsion 3 | . . . . . 2 1 Utility 5 | . . 2 . . 2 1 Weapon . | . . . . . . . Parts Attached 65 | 3 6 8 10 . 32 6 Power 8 | . 1 1 3 . 3 . Engine 7 | . 1 1 3 . 2 . Core 1 | . . . . . 1 . Reactor . | . . . . . . . Propulsion 20 | 2 . 3 2 . 12 1 Treads 7 | 2 . 3 1 . 1 . Leg . | . . . . . . . Wheel 1 | . . . . . 1 . Hover . | . . . . . . . Flight 12 | . . . 1 . 10 1 Utility 17 | . 2 2 1 . 9 3 Device 5 | . 1 . . . 2 2 Storage 3 | . 1 . . . 1 1 Processor 5 | . . 2 . . 3 . Hackware 2 | . . . . . 2 . Protection 2 | . . . 1 . 1 . Artifact . | . . . . . . . Weapon 20 | 1 3 2 4 . 8 2 Energy Gun 5 | 1 1 1 1 . 1 . Energy Cannon . | . . . . . . . Ballistic Gun 11 | . 1 1 3 . 4 2 Ballistic Cannon 1 | . . . . . 1 . Launcher 3 | . 1 . . . 2 . Special Weapon . | . . . . . . . Impact Weapon . | . . . . . . . Slashing Weapon . | . . . . . . . Piercing Weapon . | . . . . . . . Special Melee Weapon . | . . . . . . . Unidentified Prototypes 4 | . . . 3 . 1 . Parts Lost 19 | . . 6 . . 5 8 Power 2 | . . 1 . . 1 . Propulsion 7 | . . 1 . . 1 5 Utility 5 | . . 1 . . 1 3 Weapon 5 | . . 3 . . 2 . Highest Loss Streak 7 | . . 3 . . 4 7 To Critical Strikes . | . . . . . . . Average Backups 12 | 6 10 14 14 14 9 9 Power 1 | 1 1 2 2 2 1 . Propulsion 1 | 4 3 3 2 2 . . Utility 5 | . 2 4 5 6 5 6 Weapon 3 | 1 2 4 3 4 2 2 Tool/Special . | . . . . . . . Unused Backups 31 | . 5 2 9 1 9 5 Power 9 | . 2 2 3 . 2 . Propulsion 4 | . 1 . 2 . 1 . Utility 13 | . 1 . 2 . 6 4 Weapon 5 | . 1 . 2 1 . 1 Tool/Special . | . . . . . . . Average Slot Usage (%) 92 | . 94 82 97 100 89 78 Engine 9 | . 14 8 11 11 4 5 Treads 18 | . 27 21 21 22 11 . Flight 4 | . . . . . 11 23 Device 2 | . 10 6 . . 1 3 Storage 9 | . 14 11 11 11 5 5 Processor 16 | . . 13 22 22 16 20 Hackware 2 | . . . . . 8 12 Protection 6 | . . . 9 11 7 . Energy Gun 4 | . 14 11 3 . . 2 Ballistic Gun 14 | . 11 10 17 22 9 . Peak Build Rating 52 | 6 12 14 20 19 47 52 Average Rating 21 | 6 10 12 17 19 30 42 On Entrance 17 | 6 6 12 11 19 19 47 Avg Prop Armor Cover (%) 16 | . . . . . 16 . Naked Turns . | . . . . . . . Heaviest Build 46 | 12 33 32 43 41 46 30 Greatest Support 40 | 40 40 40 40 40 27 33 Greatest Overweight (x) 7 | . . 1 2 1 7 1 Average Overweight (x) . | . . . . 1 1 . Largest Inventory Capacity 15 | 8 15 15 15 15 15 10 Average Capacity 13 | 8 13 15 15 15 11 9 Most Carried 15 | 6 15 15 15 15 14 10 Average Carried 12 | 6 10 14 14 14 9 9 Final Capacity 15 | 8 15 15 15 15 8 5 Final Carried 15 | 6 14 14 14 15 8 5 Class Distribution -------------------- 38% | Mutant 32% | Commander-Mutant 14% | Scavenger-Mutant 4% | Scavenger-Sprinter 3% | Hacker-Sprinter Dominant Class ---------------- Mutant | -10/Materials Mutant | -9/Materials Mutant | -9/Storage Commander-Mutant | -9/Recycling Commander-Mutant | -7/Factory Hacker-Scout | -6/Factory Resources | -11 -10 -9 -9 -9 -7 -6 ----------- Run | Yrd Mat Mat Sto Rec Fac Fac Matter Collected 1726 | 192 125 279 305 . 640 185 Remotely . | . . . . . . . Salvage Created 1348 | . 120 326 346 . 367 189 Parts 103 | . 12 26 30 . 25 10 Haulers Intercepted . | . . . . . . . Recyclers Shooed . | . . . . . . . Parts Field Recycled . | . . . . . . . Retrieved Matter . | . . . . . . . Parts Self-Destructed . | . . . . . . . Prevented . | . . . . . . . Parts Restored . | . . . . . . . Kills | -11 -10 -9 -9 -9 -7 -6 ------- Run | Yrd Mat Mat Sto Rec Fac Fac Combat Hostiles Destroyed 43 | . 6 12 9 . 12 4 Guns 33 | . 3 12 9 . 9 . AOE 10 | . 3 . . . 3 4 Classes Destroyed 8 | . 3 1 2 . 2 . Worker 4 | . . . 2 . . 2 Watcher 3 | . 1 . . . 1 1 Swarmer 23 | . 3 6 4 . 6 4 Cutter 3 | . . . . . 3 . Grunt 7 | . 3 2 1 . 1 . Brawler 1 | . . . 1 . . . Sentry 8 | . . 4 3 . 1 . Programmer 1 | . . . . . 1 . Best Kill Streak 10 | . 3 6 10 . 4 6 Combat Bots Only 8 | . 3 6 8 . 4 4 Max Kills in Single Turn 3 | . 3 2 1 . 3 2 Gunslinging 1 | . . 1 . . . . Exploded 3 | . 3 . . . 3 2 Melee . | . . . . . . . Uniques/NPCs Destroyed . | . . . . . . . Combat | -11 -10 -9 -9 -9 -7 -6 -------- Run | Yrd Mat Mat Sto Rec Fac Fac Hostile Shots Fired 570 | . 29 98 50 1 226 166 Missed 229 | . 8 25 15 . 94 87 Hits 341 | . 21 73 35 1 132 79 Melee 13 | . . . . . 13 . Projectile 328 | . 21 73 35 1 119 79 AOE 1 | . . . . . 1 . Critical Strikes 19 | . 2 4 . . 11 2 Damage Taken 4221 | . 205 789 481 52 1487 1207 Core 1431 | . 33 158 109 16 260 855 Absorbed by Shields 16 | . . . . . 16 . Regen/Repaired (Parts) 120 | . 52 . 68 . . . Core Remaining (%) 69 | 100 86 . . 29 62 . Volleys Fired 135 | . 12 31 35 . 49 8 Largest 2 | . 2 2 2 . 2 1 Hottest 98 | . 98 88 79 . 79 55 Shots Fired 204 | . 20 51 50 . 75 8 Gun 195 | . 18 51 50 . 73 3 Cannon . | . . . . . . . Launcher 9 | . 2 . . . 2 5 Special . | . . . . . . . Kinetic 127 | . 8 29 36 . 53 1 Thermal 66 | . 10 22 14 . 20 . Explosive 3 | . 2 . . . 1 . Electromagnetic 8 | . . . . . 1 7 Robot Hit Streak 12 | . 5 12 9 . 6 5 Robot Miss Streak 6 | . 4 4 5 . 6 . Penetration Max . | . . . . . . . Secondary Targets 6 | . . 5 . . 1 . Max Gunslinging Chain 1 | . . 1 . . 1 . Shots Hit Robots 138 | . 14 39 32 . 48 5 Core Hits 99 | . 18 33 17 . 24 7 Critical Kills 2 | . . . 1 . 1 . Critical Parts Destroyed . | . . . . . . . Critical Strikes 3 | . . . 1 . 2 . Burn 1 | . . . . . 1 . Destroy 2 | . . . 1 . 1 . Melee Attacks . | . . . . . . . Impact . | . . . . . . . Slashing . | . . . . . . . Piercing . | . . . . . . . Sneak Attacks . | . . . . . . . Combat Hostiles . | . . . . . . . Follow-up Attacks . | . . . . . . . Damage Inflicted 2737 | . 372 533 465 . 986 381 Guns 1995 | . 186 533 461 . 747 68 Cannons . | . . . . . . . Explosions 732 | . 186 . . . 233 313 Melee . | . . . . . . . Ramming 10 | . . . 4 . 6 . Kinetic 1221 | . 67 279 331 . 544 . Thermal 799 | . 119 254 130 . 203 93 Explosive 387 | . 186 . . . 201 . Electromagnetic 320 | . . . . . 32 288 Impact . | . . . . . . . Slashing . | . . . . . . . Piercing . | . . . . . . . Highest Corruption 3 | . . . . . 3 . Average Corruption 2 | . . . . . 2 . Corruption Purged . | . . . . . . . Corruption Blocked 1 | . . . . . . 1 Effects 9 | . . . . . 9 . Message Errors 3 | . . . . . 3 . Matter Fused 3 | . . . . . 3 . Heat Flow Errors 1 | . . . . . 1 . Misfires 2 | . . . . . 2 . Overload Shots . | . . . . . . . Overflow Damage 6 | . . . . . . 6 Projectiles . | . . . . . . . Explosions 6 | . . . . . . 6 Melee . | . . . . . . . Knockbacks 1 | . . . 1 . . . Impact 1 | . . . 1 . . . Kinetic . | . . . . . . . Secondary . | . . . . . . . Self-Inflicted Damage 113 | . 19 . . . 3 91 Shots 5 | . 1 . . . . 4 Rammed 2 | . . . 1 . 1 . Targets Rammed 2 | . . . 1 . 1 . Kicked . | . . . . . . . Crushed . | . . . . . . . Highest Temperature 400 | . 18 99 74 . 400 20 Average Temperature 78 | . 7 56 32 . 118 10 Received Heat Transfer 651 | . 33 249 102 12 216 39 Effects 3 | . . . . . 3 . Interference 3 | . . . . . 3 . Siege Activations . | . . . . . . . Martial Activations . | . . . . . . . Shielding Activations . | . . . . . . . Robots Disrupted . | . . . . . . . Combat Hostiles . | . . . . . . . Robots Corrupted . | . . . . . . . Combat Hostiles . | . . . . . . . Parts Fried 4 | . . . . . . 4 Impact Corruptions . | . . . . . . . Robots Melted . | . . . . . . . Combat Hostiles . | . . . . . . . Parts Melted . | . . . . . . . Heat Transferred 1390 | . 150 315 333 . 592 . Parts Sabotaged . | . . . . . . . Parts Stolen . | . . . . . . . Parts Stripped . | . . . . . . . Power Chain Reactions 3 | . . . . . . 3 Alert | -11 -10 -9 -9 -9 -7 -6 ------- Run | Yrd Mat Mat Sto Rec Fac Fac Maximum Alert Level 1 | . . 1 1 . . . Low Security (%) 95 | 100 100 85 87 100 100 100 Level 1 4 | . . 14 12 . . . Level 2 . | . . . . . . . Level 3 . | . . . . . . . Level 4 . | . . . . . . . Level 5 . | . . . . . . . High Security . | . . . . . . . Max Security . | . . . . . . . Peak Influence 245 | . 125 229 245 32 179 113 Initial 84 | . . 41 64 . 5 84 Average 52 | . 32 140 74 2 50 47 Influence Increases 1745 | . 233 378 259 74 536 265 Destroy 0b10 Robot/C 960 | . 120 240 180 40 300 80 Destroy 0b10 Robot/NC 45 | . 5 . 10 10 5 15 Destroy Leader 226 | . 32 60 50 . 72 12 Allied During Kill 29 | . . . . 12 17 . Successful Hack 86 | . 13 2 18 12 36 5 Disable Machine 105 | . 30 15 . . 30 30 Destroy Structure 24 | . 3 1 1 . 1 18 Partial Spotted 60 | . . . . . 45 15 Lose Combat Pursuer 210 | . 30 60 . . 30 90 Influence Decreases 1637 | . 134 324 412 60 377 330 Entered New Map 245 | . . 58 89 . 9 89 Time Decay 1170 | . 134 206 323 60 296 151 Lost Part 190 | . . 60 . . 50 80 Lost Ally 32 | . . . . . 22 10 Squads Dispatched 14 | . 1 . . . 11 2 Investigation 3 | . 1 . . . 2 . Extermination 3 | . . . . . 3 . Reinforcement 5 | . . . . . 3 2 Assault . | . . . . . . . Garrison 3 | . . . . . 3 . Intercept . | . . . . . . . Searches Triggered . | . . . . . . . Construction Impeded . | . . . . . . . Haulers Reinforced 1 | . . . . . 1 . Active Scanning Responses . | . . . . . . . Cargo Convoy Interrupts 1 | . . . . . 1 . Stealth | -11 -10 -9 -9 -9 -7 -6 --------- Run | Yrd Mat Mat Sto Rec Fac Fac Distress Signals 8 | . 1 1 3 . 1 2 Communications Jammed . | . . . . . . . Distress Signals . | . . . . . . . Times Spotted 110 | . 7 19 24 1 26 33 Peak Tracking Total 19 | . 3 8 3 1 4 19 Tactical Retreats 8 | . 1 2 . . 2 3 ECM-based Alert Blocks 3 | . . . . . 3 . Traps | -11 -10 -9 -9 -9 -7 -6 ------- Run | Yrd Mat Mat Sto Rec Fac Fac Traps Triggered 3 | . 1 . 1 . 1 . Indirectly . | . . . . . . . Trap Hack Attempts . | . . . . . . . Triggered . | . . . . . . . Disarmed . | . . . . . . . Reprogrammed . | . . . . . . . Reused . | . . . . . . . Traps Extracted . | . . . . . . . Installed . | . . . . . . . Triggered . | . . . . . . . Machines | -11 -10 -9 -9 -9 -7 -6 ---------- Run | Yrd Mat Mat Sto Rec Fac Fac Machines Disabled 7 | . 2 1 . . 2 2 Max in Single Turn 1 | . 1 1 . . 1 1 Machines Repaired . | . . . . . . . Machines Dismantled . | . . . . . . . Machines Sabotaged . | . . . . . . . Overloaded Fab Kills . | . . . . . . . Hacking | -11 -10 -9 -9 -9 -7 -6 --------- Run | Yrd Mat Mat Sto Rec Fac Fac Machines Accessed 31 | . 7 2 5 6 9 2 Terminals 21 | . 5 1 4 4 6 1 Fabricators 1 | . . . . . . 1 Repair Stations 2 | . 1 . 1 . . . Recycling Units 4 | . 1 . . 2 1 . Scanalyzers 2 | . . 1 . . 1 . Garrison Access 1 | . . . . . 1 . Total Hacks 98 | . 20 10 18 18 26 6 Successful 59 | . 10 5 11 10 19 4 Failed 39 | . 10 5 7 8 7 2 Catastrophic 6 | . 1 1 1 . 3 . Database Lockouts . | . . . . . . . Manual 60 | . 14 5 9 15 14 3 Terminals 76 | . 17 5 16 16 18 4 Fabricators 2 | . . . . . . 2 Repair Stations 4 | . 2 . 2 . . . Recycling Units 6 | . 1 . . 2 3 . Scanalyzers 9 | . . 5 . . 4 . Garrison Access 1 | . . . . . 1 . Terminal Hacks 10 | . 2 . 3 1 3 1 Part Schematic 1 | . . . . . . 1 Robot Analysis 1 | . 1 . . . . . Open Door 1 | . . . 1 . . . Level Access Points 1 | . . . . . 1 . Branch Access Points 2 | . . . 1 . 1 . Terminal Index 1 | . . . . . 1 . Alert Level 1 | . . . 1 . . . Hauler Manifests 1 | . 1 . . . . . Zone Layout 1 | . . . . 1 . . Fabricator Hacks 1 | . . . . . . 1 Network Status 1 | . . . . . . 1 Repair Station Hacks 4 | . 2 . 2 . . . Scan Component 2 | . 1 . 1 . . . Repair 2 | . 1 . 1 . . . Recycling Unit Hacks 5 | . . . . 2 3 . Report Inventory 4 | . . . . 2 2 . Retrieve Components 1 | . . . . . 1 . Scanalyzer 8 | . . 4 . . 4 . Insert Component 1 | . . 1 . . . . Analyze 1 | . . 1 . . . . Retrieve Study 6 | . . 2 . . 4 . Garrison Access Hacks . | . . . . . . . Unauthorized Hacks 31 | . 6 1 6 7 9 2 Terminals 31 | . 6 1 6 7 9 2 Track 7 | . 1 . 1 2 2 1 Assimilate 2 | . . . 1 . 1 . Botnet 18 | . 4 1 3 4 5 1 Operators 4 | . 1 . 1 1 1 . Fabricators . | . . . . . . . Repair Stations . | . . . . . . . Recycling Units . | . . . . . . . Scanalyzers . | . . . . . . . Garrison Access . | . . . . . . . Data Cores Recovered 1 | . . . 1 . . . Used . | . . . . . . . Hacking Detections 23 | . 5 2 5 3 6 2 Full Trace Events 1 | . . . . . 1 . Feedback Events . | . . . . . . . Feedback Blocked . | . . . . . . . Robot Schematics Acquired . | . . . . . . . Robots Built . | . . . . . . . Authchips . | . . . . . . . Time . | . . . . . . . Total Robot Build Rating . | . . . . . . . Part Schematics Acquired 2 | . . 1 . . . 1 Parts Built . | . . . . . . . Authchips . | . . . . . . . Time . | . . . . . . . Total Part Build Rating . | . . . . . . . Part Studies Acquired 6 | . . 2 . . 4 . Parts Repaired 2 | . 1 . 1 . . . Time 58 | . 26 . 32 . . . Parts Recycled . | . . . . . . . Recycled Matter . | . . . . . . . Retrieved Matter . | . . . . . . . Retrieved Components 10 | . . . . . 10 . Parts Scanalyzed 1 | . . 1 . . . . Part Schematics Acquired 1 | . . 1 . . . . Parts Damaged . | . . . . . . . Bothacking | -11 -10 -9 -9 -9 -7 -6 ------------ Run | Yrd Mat Mat Sto Rec Fac Fac Used RIF Installer . | . . . . . . . Robots Hacked . | . . . . . . . Non-combat . | . . . . . . . Combat . | . . . . . . . Robot Hacks Applied . | . . . . . . . Relay Couplers Released 3 | . . . . . 3 . Programmers 3 | . . . . . 3 . Fabnet Peak Effective % . | . . . . . . . Robots Rewired 13 | . . . . 13 . . Allies Hacked . | . . . . . . . Hacks Repelled . | . . . . . . . Allies | -11 -10 -9 -9 -9 -7 -6 -------- Run | Yrd Mat Mat Sto Rec Fac Fac Total Allies 14 | . . . . 13 1 . Largest Group 12 | . . . . 12 12 1 Highest-Rated Group 136 | . . . . 136 136 10 Highest-Rated Ally 27 | . . . . 27 27 10 Total Orders . | . . . . . . . Ally Attacks 24 | . . . . 7 17 . Total Damage 387 | . . . . 169 218 . Kills 9 | . . . . 4 5 . Allies Corrupted . | . . . . . . . Allies Melted 1 | . . . . 1 . . Intel | -11 -10 -9 -9 -9 -7 -6 ------- Run | Yrd Mat Mat Sto Rec Fac Fac Active Infowar (turns) 3655 | . . 74 1159 990 1081 351 Optics 3655 | . . 74 1159 990 1081 351 Sensors 170 | . . . . . . 170 ECM 62 | . . . . . 16 46 Robot Analysis Total 1 | . 1 . . . . . Derelict Logs Recovered . | . . . . . . . Drone Launches . | . . . . . . . Drone Recoveries . | . . . . . . . Exploration | -11 -10 -9 -9 -9 -7 -6 ------------- Run | Yrd Mat Mat Sto Rec Fac Fac Turns Passed 4603 | 5 587 430 1159 990 1081 351 Spaces Moved 3669 | 1 313 201 420 340 1420 974 Core 92 | . . . . . 2 90 Treads 1282 | 1 313 201 420 340 7 . Legs . | . . . . . . . Wheels 362 | . . . . . 362 . Hover . | . . . . . . . Flight 1933 | . . . . . 1049 884 Fastest Speed 23 | 160 160 160 160 240 23 26 Average Speed 101 | 160 160 163 227 240 58 30 Slowest Speed 400 | 160 160 240 320 240 400 117 Overloaded Moves 58 | . . . . . 58 . Propulsion Burnouts . | . . . . . . . Robots Hopped 10 | . . . . . 4 6 Potential Cave-ins . | . . . . . . . Cave-ins Triggered . | . . . . . . . Exploration Rate (%) 38 | 2 64 16 48 78 37 23 Regions Visited 6 Branch Regions 2 Pre-discovered Areas . | . . . . . . . Known Exits Taken 4 | . . 1 1 1 1 . Unknown Exits Taken 2 | 1 1 . . . . . Scrap Searched . | . . . . . . . Spaces Dug . | . . . . . . . Terrain Destroyed 20 | . 3 . . . 1 16 Melee . | . . . . . . . Projectile . | . . . . . . . AOE 20 | . 3 . . . 1 16 Terrain Rammed . | . . . . . . . Walls Destroyed . | . . . . . . . Machines Disabled . | . . . . . . . Actions | -11 -10 -9 -9 -9 -7 -6 --------- Run | Yrd Mat Mat Sto Rec Fac Fac Total 4336 | 3 381 255 581 516 1590 1010 Wait 163 | . 29 2 77 23 24 8 Move 3643 | . 312 200 419 339 1411 962 Hop 10 | . . . . . 4 6 Pick Up 71 | . 14 8 17 2 27 3 Fast Attach 25 | . 1 2 4 . 15 3 Attach 30 | . 2 4 2 . 21 1 Detach 5 | . 1 . . . 2 2 Swap 36 | 3 4 3 6 . 10 10 Drop 64 | . 6 5 19 1 26 7 Fire 135 | . 12 31 35 . 49 8 Melee . | . . . . . . . Ram 1 | . . . . . 1 . Kick . | . . . . . . . Crush 1 | . . . 1 . . . Escape Stasis . | . . . . . . . Rewire 152 | . . . 1 151 . . Trap . | . . . . . . . Miscellaneous . | . . . . . . . Route ------- -11/Scrapyard -10/Materials -9/Materials (discovered 2 exits: *Sto x2) -9/Storage -9/Recycling -7/Factory (discovered 6 exits: *Fac x4 / Low x2) -6/Factory History --------- Turn | Location | Event 6 | -11/Scrapyard | Discovered new exit (range 0) 6 | -11/Scrapyard | Entered Materials 7 | -10/Materials | Met a group of wandering Federalists 324 | -10/Materials | Build established: Mutant 403 | -10/Materials | Discovered new exit (range 15) 526 | -10/Materials | Repaired Lgt. Treads 593 | -10/Materials | Entered another Materials area 593 | -9/Materials | Evolved 2 slots: Utility x2 677 | -9/Materials | Discovered new exit (range 11) 755 | -9/Materials | Discovered new exit (range 16) 761 | -9/Materials | Identified exit to Storage 896 | -9/Materials | Lost 3 parts (1p1u1w) 1023 | -9/Materials | Entered Storage 1064 | -9/Storage | Core integrity fell below 50% 1131 | -9/Storage | Destroyed 8 combat bots 1236 | -9/Storage | Build established: Scavenger-Mutant 1246 | -9/Storage | Met 01-MTF 1407 | -9/Storage | Repaired Beam Rifle 1785 | -9/Storage | Identified exit to Recycling 1866 | -9/Storage | Build established: Mutant 2069 | -9/Storage | Used back door to open Recycling access 2182 | -9/Storage | Entered Recycling 2182 | -9/Recycling | Accompanied by 1 ally (01-MTF) 2183 | -9/Recycling | Joined Warlord attack on 0b10 via Recycling 2238 | -9/Recycling | Lost 7 allies 2534 | -9/Recycling | Build established: Commander-Mutant 3095 | -9/Recycling | Discovered new exit (range 18) 3164 | -9/Recycling | Identified exit to Factory 3172 | -9/Recycling | Entered Factory 3172 | -7/Factory | Accompanied by 12 allies 3172 | -7/Factory | Evolved 4 slots: Propulsion x2, Utility x2 3541 | -7/Factory | Lost 3 allies 3672 | -7/Factory | Garrison activated, responded to threat 3748 | -7/Factory | Lost 9 allies 3798 | -7/Factory | Lost 4 parts (1p1u2w) 4188 | -7/Factory | Cargo convoy interrupted 4221 | -7/Factory | Identified exit to Factory 4221 | -7/Factory | Identified exit to Lower Caves 4253 | -7/Factory | Entered another Factory area 4253 | -6/Factory | Accompanied by 1 ally 4253 | -6/Factory | Evolved 2 slots: Propulsion x1, Utility x1 4569 | -6/Factory | Core integrity fell below 50% 4584 | -6/Factory | Core integrity fell below 20% 4592 | -6/Factory | Lost 7 parts (5n2u) 4604 | -6/Factory | Destroyed by S-27 Virus with Autogun Last Messages --------------- 04549_ ALERT: Hostiles spotted, dispatching reinforcements to Terminal F004. 04553_ Adv. Sensor Array destroyed. 04557_ Xenon Bombardment Thruster+ destroyed. 04558_ K-01 Serf destroyed. 04558_ Dropped Imp. Deuterium Engine+. 04559_ Xenon Bombardment Thruster+ destroyed. 04559_ Dropped Med. Storage Unit. 04559_ Xenon Bombardment Thruster+ destroyed. 04561_ System Shield destroyed. 04561_ R-10 Processor collects Lgt. Ion Engine. 04562_ S-27 Virus destroyed. 04565_ W-25 Informer sends out distress signal. 04568_ S-27 Virus destroyed. 04569_ Slug penetrates Wall. 04569_ Penetrated by Slug. 04585_ S-27 Virus destroyed. 04589_ Corruption Screen intercepted 1% system corruption. 04597_ Hacking Suite destroyed. Map ----- +----------------------------------------------------+ | | | | | | | | | | | | | | | | | | | | | | | | | | | | | | | | | | | ?????????????????????????#######?????????????????? | | ????????????????????????? = ?????????????????? | | ????????????????????????? ?????????????????? | | ?????????????????????????? """ ??????????????????? | | ?????????????????????????? """ ??????????##??????? | | ???????????????????????????"""????????# ? ##?????? | | ??????????????????????????? ????????? #????## | | ??????????????????##########+###?#+###### ###???# | | ??????????????????# @ ### # ##### | | ??????????????????# s | | ???????????? ; ssss s | | ????????? # """ """ss """ | | ??????? ??# """ """ "Y" #### | | ???????? ?????# """ """ ###??# ] | | ????????##????????# ! ####### | | ????????????????? """g"""g""" # | | ??????????????? """ """ """ | | ?????????????? """ """ """ | | ?????????????" """ """ g " | | ?????????????" """ """ | | ????????????""??"" """ | | ???????????????? ?? ####### | | ????????????????????"" #?????### ## | | ????????????????????"" #################??# #? | | ?????????????????????" ?????????# #??# #? | | ????????????????????? ""#######??# !] #??# #? | | ?????????????????????" F"# ?# ]/ ?### ## | | ?????????????????????????# ?# ???# | | ?????????????????????????# ##+###### | | ?????????????????????????# # | | ?????????????????????????# """" + | | ?????????????????????????# """" # | | ?????????????????????????# """" # ##### | +----------------------------------------------------+ Best States ------------- Heat Dissipation 42 Energy Generation 18 Energy Capacity 290 Matter Stores 300 Matter Capacity 300 Sight Range 20 Robot Scan Range 16 Terrain Scan Density 10 ECM Strength 1 Corruption Block 8 Armor Coverage 375 Evasion (%) 72 Recoil Reduction 2 Offensive Hacking 10 Defensive Hacking 10 Item Schematics ----------------- Lrg. Matter Pod | -9/Materials | Scanalyzed Linear Gravjet | -6/Factory | Hacked Robot Schematics ------------------ None Fabricated ------------ Nothing Repaired ---------- Lgt. Treads | 62% | -10/Materials Beam Rifle | 9% | -9/Storage Studied --------- Spread Laser | -9/Materials | Hacked Hvy. Assault Rifle | -9/Materials | Hacked Xenon Bombardment Thruster | -7/Factory | Hacked Imp. Deuterium Engine | -7/Factory | Hacked Lightning Gun | -7/Factory | Hacked Cesium-ion Thruster | -7/Factory | Hacked Alien Tech Used ----------------- None Achievements -------------- Jackpot Challenges ------------ None Game ------ Seed TargetingMeleeWeb Manual? 0 Play Time 00:57:45 Cumulative 64.4 hours Start 2025.12.27 @ 09:37:37 End 2025.12.27 @ 11:02:39 Sessions 1 Manual Loads 0 Difficulty Rogue Special Mode None Game No. 97 Rogue 75 Adventurer 20 Explorer 2 Win Type - Total 0 Types 0/0/0/0/0/0/0/0/0/0 Lore% 43 Gallery% 37 Achievement% 26 Wizard Run 0 Options --------- Layout 1 ASCII 0 Keyboard 0 Movement Numpad Keybinds 0 Fullscreen 2 Font 24/Smallcaps Map View 50x35 Zoom Use 0% Tactical HUD 1 Map Filters NONE Filters NONE Steam 1 RUN: 07159038-0b71-45b6-9c97-12397ef93069